[Event "Aktogay Masters 2019"]
[Site "Aktogay"]
[Date "2019.05.15"]
[Round "2.4"]
[White "Igambergenov, Alibek"]
[Black "Kuznetsov, Andrei S."]
[Result "1-0"]
[ECO "A42"]
[WhiteElo "2295"]
[BlackElo "2261"]
[Annotator "NA"]
[PlyCount "93"]
[EventDate "2019.05.11"]
[EventType "tourn"]
[EventCountry "KAZ"]
[SourceTitle "playchess.com"]
[Source "ChessBase"]
[SourceQuality "1"]
[TimeControl "5400+30"]

1. Nf3 {[%emt 0:00:00]} g6 {[%emt 0:00:35]} 2. c4 {[%emt 0:00:00]} Bg7 {[%emt 0:00:45]} 3. d4 {[%emt 0:00:03]} d6 {[%emt 0:00:29]} 4. Nc3 {[%emt 0:00:09]} Nd7 {[%emt 0:05:32]} 5. e4 {[%emt 0:00:57]} e5 {[%emt 0:01:16]} 6. Bg5 {[%emt 0:01:07]} Ne7 {[%emt 0:06:43]} 7. Be2 {[%emt 0:06:27]} h6 {[%emt 0:02:36]} 8. Be3 {[%emt 0:01:26]} f5 {[%emt 0:03:00]} 9. dxe5 dxe5 {[%emt 0:01:51]} 10. g3 {[%emt 0:10:28]} O-O {[%emt 0:09:27]} 11. h4 {[%emt 0:09:53]} b6 {[%emt 0:06:43]} 12. exf5 {[%emt 0:05:01]} gxf5 {[%emt 0:02:30]} 13. Qd2 {[%emt 0:00:37]} Rf6 {[%emt 0:03:03]} 14. c5 {[%emt 1:00:52]} bxc5 {[%emt 0:16:48]} 15. Bxc5 {[%emt 0:00:00]} Nc6 {[%emt 0:04:26]} 16. Ba3 {[%emt 0:01:00]} e4 {[%emt 0:32:16]} 17. Ng5 {[%emt 0:00:00]} Nb6 {[%emt 0:00:00]} 18. Qxd8+ {[%emt 0:00:00]} Nxd8 {[%emt 0:00:00]} 19. O-O-O {[%emt 0:00:00]} Nc6 {[%emt 0:00:00]} 20. Nh3 {[%emt 0:00:00]} Bf8 {[%emt 0:00:00]} 21. Bxf8 {[%emt 0:00:00]} Kxf8 {[%emt 0:00:00]} 22. Nf4 {[%emt 0:00:00]} Be6 {[%emt 0:03:00]} 23. Kb1 {[%emt 0:00:00]} Bc4 {[%emt 0:00:00]} 24. Bxc4 {[%emt 0:00:00]} Nxc4 {[%emt 0:00:00]} 25. Ncd5 {[%emt 0:00:00]} Rb8 {[%emt 0:01:30]} 26. b3 {[%emt 0:00:00]} Rd6 {[%emt 0:00:00]} 27. Nxc7 {[%emt 0:00:00]} Rb7 {[%emt 0:00:26]} 28. Nce6+ {[%emt 0:00:00]} Ke7 {[%emt 0:00:24]} 29. Rxd6 {[%emt 0:00:00]} Kxd6 {[%emt 0:00:30]} 30. Rd1+ {[%emt 0:00:00]} Ke7 {[%emt 0:00:28]} 31. Ka1 {[%emt 0:00:00]} Nb4 {[%emt 0:00:30]} 32. Nd4 {[%emt 0:00:03]} Nd6 {[%emt 0:00:38]} 33. a3 {[%emt 0:01:10]} Na6 {[%emt 0:00:07]} 34. Nc6+ {[%emt 0:00:22]} Kd7 {[%emt 0:00:28]} 35. Na5 {[%emt 0:00:07]} Rc7 {[%emt 0:00:56]} 36. Nc4 {[%emt 0:00:07]} Rxc4 {[%emt 0:00:15]} 37. bxc4 {[%emt 0:00:04]} Nc5 {[%emt 0:00:15]} 38. Kb2 {[%emt 0:03:30]} Kc6 {[%emt 0:00:08]} 39. Kc3 {[%emt 0:00:09]} a5 {[%emt 0:00:33]} 40. Rd5 {[%emt 0:00:49]} a4 {[%emt 0:01:16]} 41. Ne2 {[%emt 0:00:57]} Nd3 {[%emt 0:00:29]} 42. Nd4+ {[%emt 0:00:33]} Kc7 {[%emt 0:00:06]} 43. Nxf5 {[%emt 0:00:49]} Ne8 {[%emt 0:00:26]} 44. Rxd3 {[%emt 0:01:26]} exd3 {[%emt 0:00:05]} 45. Kxd3 {[%emt 0:00:03]} h5 {[%emt 0:00:11]} 46. Kd4 {[%emt 0:00:26]} Nf6 {[%emt 0:00:10]} 47. f3 {[%emt 0:00:07]} 1-0

[Event "Aktogay Masters 2019"]
[Site "Aktogay"]
[Date "2019.05.15"]
[Round "2.5"]
[White "Nukin, Tolegen"]
[Black "Vlassov, Nikolai"]
[Result "0-1"]
[ECO "A80"]
[WhiteElo "2113"]
[BlackElo "2393"]
[Annotator "NA"]
[PlyCount "82"]
[EventDate "2019.05.11"]
[EventType "tourn"]
[EventCountry "KAZ"]
[SourceTitle "playchess.com"]
[Source "ChessBase"]
[SourceQuality "1"]
[TimeControl "5400+30"]

1. Nf3 {[%emt 0:00:00]} f5 {[%emt 0:00:00]} 2. b3 {[%emt 0:04:41]} d6 {[%emt 1:31:00]} 3. d4 {[%emt 0:00:31]} g6 {[%emt 0:00:30]} 4. Bb2 {[%emt 0:00:37]} Bg7 {[%emt 0:00:00]} 5. g3 {[%emt 0:08:23]} Nd7 6. Ng5 {[%emt 0:00:42]} Nf8 {[%emt 0:00:00]} 7. h4 {[%emt 0:02:14]} c5 {[%emt 0:00:00]} 8. e3 {[%emt 0:02:54]} Bd7 9. Bc4 {[%emt 0:00:33]} e6 10. Nc3 {[%emt 1:14:25]} cxd4 {[%emt 0:00:00]} 11. exd4 {[%emt 0:00:00]} Qa5 12. Qd2 {[%emt 0:01:00]} h6 {[%emt 0:00:00]} 13. Nf3 {[%emt 0:00:30]} Bc6 {[%emt 0:00:00]} 14. Be2 {[%emt 0:00:00]} Nf6 15. O-O-O {[%emt 0:01:00]} O-O-O {[%emt 0:06:00]} 16. Kb1 {[%emt 0:00:00]} Ng4 17. Qe1 {[%emt 0:00:00]} Nh7 {[%emt 0:00:00]} 18. Rg1 {[%emt 0:00:00]} Rhe8 19. a3 {[%emt 0:02:00]} Qc7 {[%emt 0:00:00]} 20. b4 {[%emt 0:00:00]} Kb8 21. b5 {[%emt 0:01:00]} Bd7 {[%emt 0:00:00]} 22. Na2 {[%emt 0:00:30]} Nhf6 {[%emt 0:00:00]} 23. c4 {[%emt 0:00:30]} e5 {[%emt 0:00:00]} 24. Nd2 {[%emt 0:00:30]} exd4 {[%emt 0:00:00]} 25. Bxd4 {[%emt 0:00:30]} Qa5 {[%emt 0:05:00]} 26. Kb2 {[%emt 0:00:00]} Ne5 {[%emt 0:00:30]} 27. Qf1 {[%emt 0:01:00]} Be6 {[%emt 0:00:00]} 28. f4 {[%emt 0:00:00]} Ned7 {[%emt 0:00:00]} 29. Nb3 {[%emt 0:01:00]} Qc7 {[%emt 0:01:30]} 30. Bd3 {[%emt 0:00:00]} Nb6 {[%emt 0:00:00]} 31. Rc1 {[%emt 0:00:00]} Rc8 {[%emt 0:00:00]} 32. Qf2 {[%emt 0:01:30]} Ng4 {[%emt 0:00:00]} 33. Qc2 {[%emt 0:00:00]} Ne3 {[%emt 0:00:00]} 34. Qf2 {[%emt 0:00:01]} Bxc4 35. Ka1 {[%emt 0:01:29]} Bxb3 {[%emt 0:00:00]} 36. Rxc7 {[%emt 0:00:00]} Bxd4+ {[%emt 0:00:00]} 37. Kb1 {[%emt 0:00:00]} Rxc7 {[%emt 0:00:00]} 38. Re1 {[%emt 0:00:55]} Nbd5 {[%emt 0:00:00]} 39. Qf3 {[%emt 0:00:30]} Rec8 {[%emt 0:00:00]} 40. h5 {[%emt 0:01:05]} Rc2 {[%emt 0:00:00]} 41. Bxc2 {[%emt 0:00:30]} Bc4 {[%emt 0:06:00]} 0-1

[Event "Aktogay Masters 2019"]
[Site "Aktogay"]
[Date "2019.05.15"]
[Round "3.1"]
[White "Kuznetsov, Andrei S."]
[Black "Khusenkhojaev, Muhammad"]
[Result "0-1"]
[ECO "C28"]
[WhiteElo "2261"]
[BlackElo "2445"]
[Annotator "NA"]
[PlyCount "90"]
[EventDate "2019.05.11"]
[EventType "tourn"]
[EventCountry "KAZ"]
[SourceTitle "playchess.com"]
[Source "ChessBase"]
[SourceQuality "1"]
[TimeControl "5400+30"]

1. e4 {[%emt 0:00:00]} e5 {[%emt 0:00:00]} 2. Nc3 {[%emt 0:00:19]} Nf6 {[%emt 0:00:14]} 3. Bc4 {[%emt 0:01:28]} Nc6 {[%emt 0:01:54]} 4. d3 {[%emt 0:06:59]} Na5 {[%emt 0:00:36]} 5. Nge2 {[%emt 0:01:46]} Bc5 {[%emt 0:01:41]} 6. Ng3 {[%emt 0:02:33]} d6 {[%emt 0:02:27]} 7. h3 {[%emt 0:02:04]} a6 {[%emt 0:01:10]} 8. a3 {[%emt 0:01:02]} Nxc4 {[%emt 0:00:09]} 9. dxc4 {[%emt 0:00:06]} Be6 {[%emt 0:01:37]} 10. Qd3 {[%emt 0:07:09]} c6 {[%emt 0:00:49]} 11. a4 {[%emt 0:02:39]} d5 {[%emt 0:10:40]} 12. cxd5 {[%emt 0:01:56]} cxd5 {[%emt 0:00:30]} 13. exd5 Nxd5 {[%emt 0:00:00]} 14. Nh5 {[%emt 0:25:37]} Bf8 {[%emt 0:17:11]} 15. O-O {[%emt 0:07:02]} Nxc3 {[%emt 0:02:20]} 16. Qxc3 {[%emt 0:02:11]} f6 {[%emt 0:00:15]} 17. Qf3 {[%emt 0:10:33]} Bd5 {[%emt 0:09:45]} 18. Qg4 {[%emt 0:01:27]} Qd7 {[%emt 0:01:44]} 19. Rd1 {[%emt 0:03:59]} Qxg4 {[%emt 0:00:45]} 20. hxg4 {[%emt 0:00:03]} Be6 {[%emt 0:00:44]} 21. f3 {[%emt 0:00:37]} Bc5+ {[%emt 0:00:24]} 22. Kf1 {[%emt 0:01:50]} Kf7 {[%emt 0:00:44]} 23. Ng3 {[%emt 0:01:02]} Rac8 {[%emt 0:00:07]} 24. Ne4 {[%emt 0:00:55]} Be7 {[%emt 0:00:17]} 25. c3 {[%emt 0:00:40]} h5 {[%emt 0:04:36]} 26. g5 {[%emt 0:00:43]} Rhd8 {[%emt 0:02:45]} 27. Rxd8 {[%emt 0:01:26]} Rxd8 {[%emt 0:00:05]} 28. gxf6 {[%emt 0:00:07]} gxf6 {[%emt 0:00:18]} 29. Be3 {[%emt 0:00:56]} Bc4+ {[%emt 0:02:56]} 30. Kf2 {[%emt 0:04:04]} f5 {[%emt 0:03:28]} 31. Nd2 {[%emt 0:00:28]} Be6 {[%emt 0:02:20]} 32. f4 {[%emt 0:01:06]} e4 {[%emt 0:00:08]} 33. Rh1 {[%emt 0:02:13]} Kg6 {[%emt 0:05:14]} 34. Ke2 {[%emt 0:02:26]} Bf6 {[%emt 0:02:29]} 35. g3 {[%emt 0:01:31]} Bf7 {[%emt 0:02:26]} 36. Ra1 {[%emt 0:01:43]} Kh6 {[%emt 0:00:58]} 37. Rh1 {[%emt 0:01:12]} Rg8 {[%emt 0:01:29]} 38. Bf2 {[%emt 0:00:49]} Rd8 {[%emt 0:02:19]} 39. Be3 {[%emt 0:00:26]} Be8 {[%emt 0:01:11]} 40. Ra1 {[%emt 0:00:49]} h4 {[%emt 0:00:46]} 41. Rh1 {[%emt 0:05:21]} Bxa4 {[%emt 0:02:18]} 42. gxh4 {[%emt 0:00:09]} Bb5+ {[%emt 0:02:21]} 43. c4 {[%emt 0:01:24]} Be8 {[%emt 0:00:08]} 44. Bf2 {[%emt 0:00:38]} Bh5+ {[%emt 0:00:16]} 45. Ke1 {[%emt 0:00:09]} Rd3 {[%emt 0:00:50]} 0-1

[Event "Aktogay Masters 2019"]
[Site "Aktogay"]
[Date "2019.05.15"]
[Round "3.2"]
[White "Sukhov, Artur"]
[Black "Suleymenov, Alisher"]
[Result "0-1"]
[ECO "E50"]
[WhiteElo "2110"]
[BlackElo "2435"]
[Annotator "NA"]
[PlyCount "76"]
[EventDate "2019.05.11"]
[EventType "tourn"]
[EventCountry "KAZ"]
[SourceTitle "playchess.com"]
[Source "ChessBase"]
[SourceQuality "1"]
[TimeControl "5400+30"]

1. d4 {[%emt 0:00:00]} Nf6 {[%emt 0:00:00]} 2. c4 {[%emt 0:00:00]} Nc6 {[%emt 0:00:00]} 3. Nf3 {[%emt 0:00:00]} e6 {[%emt 0:00:00]} 4. Nc3 {[%emt 0:00:18]} Bb4 {[%emt 0:00:00]} 5. e3 {[%emt 0:02:13]} O-O {[%emt 0:01:18]} 6. Bd3 {[%emt 0:00:08]} d6 {[%emt 0:01:15]} 7. O-O {[%emt 0:00:39]} Bxc3 {[%emt 0:02:16]} 8. bxc3 {[%emt 0:00:08]} e5 {[%emt 0:00:02]} 9. e4 {[%emt 0:00:15]} Re8 {[%emt 0:05:46]} 10. Re1 {[%emt 0:03:29]} Bg4 {[%emt 0:02:42]} 11. d5 {[%emt 0:07:44]} Na5 {[%emt 0:08:55]} 12. Qa4 {[%emt 0:05:33]} b6 {[%emt 0:04:59]} 13. Nd2 {[%emt 0:02:58]} Nh5 {[%emt 0:13:56]} 14. Nb3 {[%emt 0:06:03]} Nb7 {[%emt 0:02:19]} 15. Be2 {[%emt 0:03:42]} Bxe2 {[%emt 0:04:15]} 16. Rxe2 {[%emt 0:00:14]} Rf8 {[%emt 0:01:56]} 17. g4 {[%emt 0:09:30]} Nf4 {[%emt 0:07:23]} 18. Bxf4 {[%emt 0:00:26]} exf4 {[%emt 0:00:02]} 19. f3 {[%emt 0:01:29]} Re8 {[%emt 0:06:44]} 20. Rae1 {[%emt 0:07:20]} h5 {[%emt 0:02:00]} 21. Rg2 {[%emt 0:05:44]} hxg4 {[%emt 0:11:03]} 22. Rxg4 {[%emt 0:00:24]} f5 {[%emt 0:00:02]} 23. Rg2 {[%emt 0:08:14]} fxe4 {[%emt 0:00:02]} 24. fxe4 {[%emt 0:04:57]} f3 {[%emt 0:08:01]} 25. Rg3 {[%emt 0:03:30]} Qh4 {[%emt 0:00:42]} 26. Rf1 {[%emt 0:02:48]} Rxe4 {[%emt 0:01:54]} 27. Nd2 {[%emt 0:07:55]} Rg4 {[%emt 0:05:48]} 28. Rfxf3 {[%emt 0:00:39]} Nc5 {[%emt 0:01:11]} 29. Qc2 {[%emt 0:04:52]} Rxg3+ {[%emt 0:06:08]} 30. hxg3 {[%emt 0:02:39]} Qh5 {[%emt 0:00:36]} 31. Rf5 {[%emt 0:06:20]} Qe2 {[%emt 0:02:44]} 32. Rf2 {[%emt 0:00:30]} Qe3 {[%emt 0:00:57]} 33. Qf5 {[%emt 0:02:55]} Qxg3+ {[%emt 0:00:55]} 34. Kf1 {[%emt 0:00:08]} Qd3+ {[%emt 0:00:09]} 35. Qxd3 {[%emt 0:01:43]} Nxd3 {[%emt 0:00:02]} 36. Rf3 {[%emt 0:00:14]} Ne5 {[%emt 0:00:40]} 37. Re3 {[%emt 0:01:09]} Rf8+ {[%emt 0:00:16]} 38. Ke2 {[%emt 0:00:04]} Rf4 {[%emt 0:02:02]} 0-1

[Event "Aktogay Masters 2019"]
[Site "Aktogay"]
[Date "2019.05.15"]
[Round "3.3"]
[White "Vlassov, Nikolai"]
[Black "Kaiyrbekov, Rustam"]
[Result "0-1"]
[ECO "B30"]
[WhiteElo "2393"]
[BlackElo "2329"]
[Annotator "NA"]
[PlyCount "92"]
[EventDate "2019.05.11"]
[EventType "tourn"]
[EventCountry "KAZ"]
[SourceTitle "playchess.com"]
[Source "ChessBase"]
[SourceQuality "1"]
[TimeControl "5400+30"]

1. e4 {[%emt 0:00:00]} c5 {[%emt 0:00:00]} 2. Nc3 {[%emt 0:00:00]} Nc6 {[%emt 0:00:00]} 3. Nf3 {[%emt 0:00:00]} e6 {[%emt 0:00:04]} 4. Bb5 {[%emt 0:00:54]} Nge7 {[%emt 0:01:37]} 5. d4 {[%emt 0:03:17]} cxd4 {[%emt 0:00:27]} 6. Nxd4 {[%emt 0:00:02]} Nxd4 {[%emt 0:04:45]} 7. Qxd4 {[%emt 0:00:03]} a6 {[%emt 0:00:08]} 8. Bd3 {[%emt 0:04:04]} Nc6 {[%emt 0:00:42]} 9. Qe3 {[%emt 0:00:08]} Be7 {[%emt 0:04:11]} 10. O-O {[%emt 0:01:03]} O-O {[%emt 0:04:39]} 11. e5 {[%emt 0:08:37]} d5 {[%emt 0:04:47]} 12. exd6 {[%emt 0:07:18]} Qxd6 {[%emt 0:00:23]} 13. Qh3 {[%emt 0:02:07]} f5 {[%emt 0:06:58]} 14. Rd1 {[%emt 0:03:47]} Qc7 {[%emt 0:00:39]} 15. Be3 {[%emt 0:01:30]} Nb4 {[%emt 0:03:24]} 16. Na4 {[%emt 0:06:19]} Nxd3 {[%emt 0:09:24]} 17. cxd3 {[%emt 0:00:22]} Bd7 {[%emt 0:06:41]} 18. Nb6 {[%emt 0:00:21]} Rad8 {[%emt 0:00:26]} 19. Nc4 {[%emt 0:00:49]} Qb8 {[%emt 0:09:34]} 20. Bb6 {[%emt 0:00:35]} Rc8 {[%emt 0:09:29]} 21. Qe3 {[%emt 0:00:49]} Bd6 {[%emt 0:05:08]} 22. g3 {[%emt 0:09:13]} f4 {[%emt 0:10:50]} 23. Qd4 {[%emt 0:09:15]} Rc6 {[%emt 0:00:54]} 24. Na5 {[%emt 0:01:46]} fxg3 {[%emt 0:01:20]} 25. hxg3 {[%emt 0:00:34]} Bxg3 {[%emt 0:03:29]} 26. Nxc6 {[%emt 0:00:48]} Bxc6 {[%emt 0:01:44]} 27. Qg4 {[%emt 0:01:49]} Bh2+ {[%emt 0:00:23]} 28. Kf1 {[%emt 0:00:02]} Rf6 {[%emt 0:01:02]} 29. Rdc1 {[%emt 0:14:59]} Rg6 {[%emt 0:07:38]} 30. Qc4 {[%emt 0:03:10]} Qe5 {[%emt 0:02:52]} 31. f3 {[%emt 0:01:25]} Qf5 {[%emt 0:00:53]} 32. Ke1 {[%emt 0:02:51]} Rg2 {[%emt 0:00:48]} 33. Bf2 {[%emt 0:01:24]} Bf4 {[%emt 0:00:35]} 34. Rc2 {[%emt 0:01:39]} Rh2 {[%emt 0:00:27]} 35. Qd4 {[%emt 0:03:12]} Rh1+ {[%emt 0:00:14]} 36. Bg1 {[%emt 0:00:43]} Bg3+ {[%emt 0:00:02]} 37. Kd2 {[%emt 0:00:13]} Bf4+ {[%emt 0:00:15]} 38. Ke1 {[%emt 0:00:04]} Qg5 {[%emt 0:00:52]} 39. Kf1 {[%emt 0:01:25]} Be3 {[%emt 0:00:28]} 40. Rg2 {[%emt 0:00:29]} Qxg2+ {[%emt 0:00:46]} 41. Kxg2 {[%emt 0:00:09]} Bxf3+ {[%emt 0:00:41]} 42. Kxf3 {[%emt 0:00:45]} Bxd4 {[%emt 0:00:07]} 43. Rc1 {[%emt 0:00:17]} Rxg1 {[%emt 0:00:09]} 44. Rc8+ {[%emt 0:00:06]} Kf7 {[%emt 0:00:04]} 45. Rc7+ {[%emt 0:00:05]} Kf6 {[%emt 0:00:03]} 46. Rxb7 {[%emt 0:00:02]} h5 {[%emt 0:00:26]} 0-1

[Event "Aktogay Masters 2019"]
[Site "Aktogay"]
[Date "2019.05.15"]
[Round "3.4"]
[White "Kim, Kristina"]
[Black "Igambergenov, Alibek"]
[Result "0-1"]
[ECO "B07"]
[WhiteElo "1916"]
[BlackElo "2295"]
[Annotator "NA"]
[PlyCount "75"]
[EventDate "2019.05.11"]
[EventType "tourn"]
[EventCountry "KAZ"]
[SourceTitle "playchess.com"]
[Source "ChessBase"]
[SourceQuality "1"]
[TimeControl "5400+30"]

1. d4 {[%emt 0:00:00]} Nf6 {[%emt 0:00:00]} 2. Bf4 {[%emt 0:00:00]} g6 {[%emt 0:00:00]} 3. Nc3 {[%emt 0:00:00]} Bg7 {[%emt 0:00:09]} 4. e4 {[%emt 0:00:00]} d6 {[%emt 0:00:07]} 5. Qd2 {[%emt 0:00:02]} O-O {[%emt 0:00:13]} 6. h4 {[%emt 0:00:55]} Nc6 {[%emt 0:05:09]} 7. O-O-O {[%emt 0:00:40]} Nh5 {[%emt 0:06:45]} 8. Bh6 {[%emt 0:02:42]} e5 {[%emt 0:00:50]} 9. d5 {[%emt 0:02:21]} Ne7 {[%emt 0:00:18]} 10. Be2 {[%emt 0:00:33]} Nf4 {[%emt 0:00:30]} 11. Bxg7 {[%emt 0:03:04]} Kxg7 {[%emt 0:00:07]} 12. Bf3 {[%emt 0:04:56]} f5 {[%emt 0:05:32]} 13. g3 {[%emt 0:07:02]} fxe4 14. Nxe4 {[%emt 0:00:08]} Nfxd5 {[%emt 0:11:55]} 15. h5 {[%emt 0:00:07]} Qe8 {[%emt 0:00:17]} 16. Nxd6 {[%emt 0:14:44]} cxd6 {[%emt 0:00:33]} 17. Bxd5 {[%emt 0:00:04]} Nxd5 {[%emt 0:01:35]} 18. Qxd5 {[%emt 0:00:07]} Rxf2 {[%emt 0:00:45]} 19. h6+ {[%emt 0:03:27]} Kh8 {[%emt 0:00:43]} 20. Qxd6 {[%emt 0:00:35]} Bg4 {[%emt 1:04:32]} 21. Nh3 {[%emt 0:09:54]} Rf5 {[%emt 0:00:00]} 22. Rde1 {[%emt 0:09:53]} Qf8 {[%emt 0:01:00]} 23. Qd2 {[%emt 0:40:16]} Rc8 {[%emt 0:00:00]} 24. Qe3 {[%emt 0:00:00]} Qc5 {[%emt 0:00:00]} 25. Qxc5 {[%emt 0:00:00]} Rxc5 {[%emt 0:00:00]} 26. Nf4 {[%emt 0:00:00]} Rc8 {[%emt 0:00:00]} 27. Nd3 {[%emt 0:02:00]} e4 {[%emt 0:02:30]} 28. Nf4 {[%emt 0:00:00]} g5 {[%emt 0:00:00]} 29. Ng2 {[%emt 0:00:00]} Rf2 {[%emt 0:00:00]} 30. Ne3 {[%emt 0:00:00]} Bf3 {[%emt 0:00:00]} 31. Rh3 {[%emt 0:00:00]} Kg8 {[%emt 0:00:00]} 32. g4 {[%emt 0:00:00]} Kf7 {[%emt 0:00:00]} 33. Rh5 {[%emt 0:00:00]} Kg6 {[%emt 0:00:00]} 34. c3 {[%emt 0:00:00]} Rd8 {[%emt 0:00:00]} 35. Nc4 {[%emt 0:00:00]} Rd5 {[%emt 0:00:00]} 36. Rh3 {[%emt 0:02:23]} b5 {[%emt 0:04:30]} 37. Na3 {[%emt 0:02:03]} Rdd2 {[%emt 0:00:00]} 38. c4 {[%emt 0:01:04]} 0-1

[Event "Aktogay Masters 2019"]
[Site "Aktogay"]
[Date "2019.05.15"]
[Round "3.5"]
[White "Bekturov, Tamerlan"]
[Black "Nukin, Tolegen"]
[Result "1-0"]
[ECO "E18"]
[WhiteElo "2241"]
[BlackElo "2113"]
[Annotator "NA"]
[PlyCount "61"]
[EventDate "2019.05.11"]
[EventType "tourn"]
[EventCountry "KAZ"]
[SourceTitle "playchess.com"]
[Source "ChessBase"]
[SourceQuality "1"]
[TimeControl "5400+30"]

1. d4 {[%emt 0:00:00]} Nf6 {[%emt 0:00:11]} 2. c4 {[%emt 0:00:00]} e6 {[%emt 0:00:24]} 3. g3 {[%emt 1:31:30]} d5 {[%emt 0:00:23]} 4. Bg2 {[%emt 0:00:00]} Be7 {[%emt 0:00:40]} 5. Nf3 {[%emt 0:00:00]} O-O {[%emt 0:00:14]} 6. O-O {[%emt 0:00:00]} b6 {[%emt 0:00:08]} 7. cxd5 {[%emt 0:00:00]} exd5 {[%emt 0:00:01]} 8. Nc3 {[%emt 0:00:00]} Bb7 {[%emt 0:00:36]} 9. Qc2 {[%emt 0:00:00]} c5 {[%emt 0:00:37]} 10. Bf4 {[%emt 0:00:00]} Na6 {[%emt 0:02:49]} 11. Rfd1 {[%emt 0:00:00]} Nc7 {[%emt 0:02:30]} 12. dxc5 {[%emt 0:00:00]} bxc5 {[%emt 0:06:54]} 13. Ng5 {[%emt 0:00:00]} h6 {[%emt 0:04:36]} 14. Nge4 {[%emt 0:00:00]} Nfe8 {[%emt 0:04:20]} 15. Na4 {[%emt 0:00:00]} c4 {[%emt 0:10:52]} 16. Nec5 {[%emt 0:00:00]} Bc6 {[%emt 0:01:20]} 17. e4 {[%emt 0:00:00]} Ne6 {[%emt 0:02:48]} 18. Nxe6 {[%emt 0:00:00]} fxe6 {[%emt 0:00:59]} 19. Bh3 {[%emt 0:00:00]} Qd7 20. Nc3 {[%emt 0:00:00]} Nf6 21. e5 {[%emt 0:09:00]} Ne8 {[%emt 0:18:59]} 22. Qg6 {[%emt 0:00:30]} Nc7 {[%emt 0:41:39]} 23. Bxh6 {[%emt 0:00:00]} Rf7 24. Be3 {[%emt 0:00:00]} Rb8 {[%emt 0:00:00]} 25. Rab1 {[%emt 0:00:00]} a5 26. Ne2 {[%emt 0:00:00]} Bf8 27. Nd4 {[%emt 0:00:00]} Re8 {[%emt 0:00:00]} 28. Bg4 {[%emt 0:00:00]} Bc5 {[%emt 0:00:00]} 29. Bh5 Rff8 {[%emt 0:03:30]} 30. Qg4 {[%emt 0:04:00]} Bxd4 {[%emt 0:00:00]} 31. Bxd4 {[%emt 0:00:30]} 1-0

[Event "Aktogay Masters 2019"]
[Site "Aktogay"]
[Date "2019.05.15"]
[Round "4.1"]
[White "Khusenkhojaev, Muhammad"]
[Black "Nukin, Tolegen"]
[Result "1-0"]
[ECO "E00"]
[WhiteElo "2445"]
[BlackElo "2113"]
[Annotator "NA"]
[PlyCount "137"]
[EventDate "2019.05.11"]
[EventType "tourn"]
[EventCountry "KAZ"]
[SourceTitle "playchess.com"]
[Source "ChessBase"]
[SourceQuality "1"]
[TimeControl "5400+30"]

1. d4 {[%emt 0:00:11]} Nf6 {[%emt 0:00:00]} 2. c4 {[%emt 0:00:07]} e6 {[%emt 0:00:00]} 3. g3 {[%emt 0:00:08]} Bb4+ {[%emt 0:00:47]} 4. Bd2 {[%emt 0:00:14]} Bxd2+ {[%emt 0:00:05]} 5. Qxd2 {[%emt 0:00:07]} d5 {[%emt 0:00:24]} 6. Bg2 {[%emt 0:00:39]} O-O {[%emt 0:00:27]} 7. Nc3 {[%emt 0:00:21]} c6 {[%emt 0:03:35]} 8. Nf3 {[%emt 0:00:29]} Nbd7 {[%emt 0:00:30]} 9. Qc2 {[%emt 0:05:46]} Qe7 {[%emt 0:00:55]} 10. cxd5 {[%emt 0:06:08]} exd5 {[%emt 0:00:29]} 11. O-O {[%emt 0:00:07]} Re8 {[%emt 0:00:21]} 12. e3 {[%emt 0:00:12]} Ne4 {[%emt 0:01:42]} 13. Nxe4 {[%emt 0:01:14]} Qxe4 {[%emt 0:00:41]} 14. Qc3 {[%emt 0:01:28]} Qe7 {[%emt 0:00:26]} 15. b4 {[%emt 0:00:15]} Nb6 {[%emt 0:04:40]} 16. a4 {[%emt 0:03:34]} a5 {[%emt 0:04:56]} 17. b5 {[%emt 0:01:18]} Nc4 {[%emt 0:04:30]} 18. Rfb1 {[%emt 0:03:51]} Bf5 {[%emt 0:01:02]} 19. Rb3 {[%emt 0:00:12]} Rec8 {[%emt 0:01:18]} 20. bxc6 {[%emt 0:02:14]} bxc6 {[%emt 0:01:08]} 21. Nd2 {[%emt 0:00:57]} Nxd2 {[%emt 0:03:15]} 22. Qxd2 {[%emt 0:00:08]} h5 {[%emt 0:09:51]} 23. Rc1 {[%emt 0:01:30]} Qd8 {[%emt 0:04:08]} 24. Rbc3 {[%emt 0:00:56]} Qb6 {[%emt 0:00:35]} 25. Rc5 {[%emt 0:01:19]} g6 {[%emt 0:05:56]} 26. h4 {[%emt 0:03:02]} Qb4 {[%emt 0:05:58]} 27. Qa2 {[%emt 0:01:42]} Rab8 {[%emt 0:01:53]} 28. Bf3 {[%emt 0:03:05]} Kg7 {[%emt 0:07:41]} 29. Kg2 {[%emt 0:04:57]} Bd7 {[%emt 0:14:51]} 30. Qa1 {[%emt 0:00:35]} Kf8 {[%emt 0:04:22]} 31. R1c3 {[%emt 0:05:09]} Ke7 {[%emt 0:03:22]} 32. Qd1 {[%emt 0:02:19]} Kf8 {[%emt 0:01:57]} 33. Qc2 {[%emt 0:00:37]} Bf5 {[%emt 0:04:00]} 34. Qd1 {[%emt 0:01:55]} Bd7 {[%emt 0:00:06]} 35. Qa1 {[%emt 0:01:20]} Ra8 {[%emt 0:02:11]} 36. Bd1 {[%emt 0:01:19]} Rcb8 {[%emt 0:00:35]} 37. Bb3 {[%emt 0:00:49]} Re8 {[%emt 0:02:36]} 38. Bc2 {[%emt 0:00:33]} Reb8 {[%emt 0:00:25]} 39. Bb3 {[%emt 0:00:16]} Re8 {[%emt 0:00:16]} 40. Qc1 {[%emt 0:00:10]} Reb8 {[%emt 0:00:14]} 41. Qa1 {[%emt 0:00:24]} Re8 {[%emt 0:00:41]} 42. Qd1 {[%emt 0:00:06]} Bg4 {[%emt 0:00:34]} 43. Qc1 {[%emt 0:00:06]} Bd7 {[%emt 0:00:18]} 44. Bc2 {[%emt 0:00:07]} Qb8 {[%emt 0:00:22]} 45. Rb3 {[%emt 0:00:28]} Qd6 {[%emt 0:00:09]} 46. Rb7 {[%emt 0:06:43]} Qe6 {[%emt 0:00:28]} 47. Kg1 {[%emt 0:00:51]} Kg7 {[%emt 0:02:02]} 48. Qd1 {[%emt 0:01:15]} Qd6 {[%emt 0:04:17]} 49. Qd2 {[%emt 0:01:08]} Re7 {[%emt 0:01:52]} 50. Bd3 {[%emt 0:02:17]} Rae8 {[%emt 0:01:29]} 51. Bf1 {[%emt 0:00:38]} g5 {[%emt 0:00:28]} 52. e4 {[%emt 0:03:16]} Rxe4 {[%emt 0:00:27]} 53. Qxg5+ {[%emt 0:00:16]} Kf8 {[%emt 0:00:06]} 54. Qxh5 {[%emt 0:01:17]} Re1 {[%emt 0:00:25]} 55. Kg2 {[%emt 0:04:47]} Qe6 {[%emt 0:00:06]} 56. Rxd7 {[%emt 0:00:17]} Qxd7 {[%emt 0:00:18]} 57. Qh6+ {[%emt 0:00:25]} Ke7 {[%emt 0:01:05]} 58. Rxc6 {[%emt 0:07:28]} Re6 {[%emt 0:00:27]} 59. Qg5+ {[%emt 0:00:11]} Kf8 {[%emt 0:00:13]} 60. Rc5 {[%emt 0:00:13]} Qxa4 {[%emt 0:00:56]} 61. Qxd5 {[%emt 0:00:20]} Qd1 {[%emt 0:00:32]} 62. Rxa5 {[%emt 0:00:11]} Rf6 {[%emt 0:01:00]} 63. Qc5+ {[%emt 0:04:35]} Kg7 {[%emt 0:00:04]} 64. Qg5+ {[%emt 0:00:05]} Rg6 {[%emt 0:00:03]} 65. Qf4 {[%emt 0:00:09]} Ree6 {[%emt 0:01:10]} 66. Rf5 {[%emt 0:01:03]} Re7 {[%emt 0:00:32]} 67. Bc4 {[%emt 0:01:12]} f6 {[%emt 0:00:39]} 68. Rxf6 {[%emt 0:00:27]} Rg4 {[%emt 0:01:09]} 69. Rf5 {[%emt 0:23:02]} 1-0